fUST/lending_fUST_20240910
["ID","MTS","AMOUNT","RATE_DAILY","PERIOD"]
[337652527,1725917394812,-259.109485,0.00033,14]
[337652528,1725917394837,-151.0,0.00033,14]
[337652529,1725917394864,-151.0,0.00033,14]
[337652530,1725917394890,-151.0,0.00033,14]
[337652531,1725917394917,-259.831444,0.00033,14]
[337652532,1725917394944,-225.466354,0.00033,14]
[337652533,1725917394970,-259.831444,0.00033,14]
[337652534,1725917394993,-225.466354,0.00033,14]
[337652535,1725917395018,-151.0,0.00033,14]
[337652536,1725917395043,-241.114956,0.00033,14]
[337652537,1725917395067,-532.579088,0.00033,14]
[337652538,1725917395091,-532.579088,0.00033,14]
[337652539,1725917395115,-7205.01031786,0.000333,7]
[337652540,1725917395139,-1500.0,0.00033817,5]
[337652541,1725917395164,-500.0,0.00033855,5]
[337652542,1725917395188,-1811.52,0.000339,30]
[337652544,1725917395211,-529.1127158,0.00034,5]
[337652545,1725917395236,-540.02633094,0.00034025,5]
[337652546,1725917395261,-462.17,0.000341,14]
[337652548,1725917395285,-268.54,0.000342,14]
[337652550,1725917395310,-1000.0,0.00034246,60]
[337652551,1725917395334,-2082.81,0.000343,14]
[337652553,1725917395358,-26331.69,0.000348,14]
[337652554,1725917395382,-212.229401,0.000348,14]
[337652555,1725917395405,-1288.218274,0.000348,14]
[337652557,1725917395429,-1288.218264,0.000348,14]
[337652558,1725917395453,-151.0,0.000348,14]
[337652560,1725917395477,-2997.478572,0.000348,14]
[337652561,1725917395501,-2997.478572,0.000348,14]
[337652562,1725917395525,-151.0,0.000348,14]
[337652564,1725917395549,-245.978072,0.000348,14]
[337652566,1725917395574,-245.97808,0.000348,14]
[337652567,1725917395599,-2920.008297,0.000348,14]
[337652569,1725917395625,-2920.0083,0.000348,14]
[337652570,1725917395652,-372.595932,0.000348,14]
[337652571,1725917395677,-372.595941,0.000348,14]
[337652572,1725917395702,-353.29611,0.000348,14]
[337652573,1725917395727,-353.296118,0.000348,14]
[337652574,1725917395752,-151.0,0.000348,14]
[337652575,1725917395777,-311.451193,0.000348,14]
[337652576,1725917395801,-311.451191,0.000348,14]
[337652577,1725917395826,-151.0,0.000348,14]
[337652578,1725917395852,-259.109485,0.000348,14]
[337652579,1725917395877,-259.10948,0.000348,14]
[337652580,1725917395904,-151.0,0.000348,14]
[337652581,1725917395929,-151.0,0.000348,14]
[337652582,1725917395955,-151.0,0.000348,14]
[337652583,1725917395980,-259.831444,0.000348,14]
[337652584,1725917396004,-225.466354,0.000348,14]
[337652585,1725917396028,-259.831436,0.000348,14]
[337652586,1725917396052,-225.466355,0.000348,14]
[337652587,1725917396075,-151.0,0.000348,14]
[337652588,1725917396100,-532.579088,0.000348,14]
[337652589,1725917396124,-532.579088,0.000348,14]
[337652590,1725917396149,-1000.0,0.00035,35]
[337652591,1725917396176,-500.0,0.00035057,13]
[337652592,1725917396201,-153.88,0.00035105,7]
[337652593,1725917396226,-269.38,0.00035105,7]
[337652594,1725917396254,-1000.0,0.00035205,60]
[337652595,1725917396277,-81573.90137602,0.0003549,25]
[337652596,1725917396301,-151.0,0.0003549,14]
[337652597,1725917396326,-2997.478572,0.0003549,14]
[337652598,1725917396351,-2997.478567,0.0003549,14]
[337652599,1725917396377,-532.579088,0.0003549,14]
[337652600,1725917396402,-532.579088,0.0003549,14]
[337652601,1725917396427,-5562.17813465,0.000355,10]
[337652602,1725917396453,-6369.485,0.000355,6]
[337652603,1725917396479,-184.0,0.000355,10]
[337652604,1725917396660,-500.0,0.00035516,13]
[337652605,1725917396687,-500.0,0.00035547,5]
[337652606,1725917396712,-191.5468298,0.0003561,14]
[337652607,1725917396739,-500.0,0.00035616,14]
[337652608,1725917396765,-500.0,0.00035616,14]
[337652609,1725917396792,-500.0,0.00035616,14]
[337652610,1725917396819,-500.0,0.00035616,14]
[337652611,1725917396845,-500.00927897,0.00035616,14]
[337652612,1725917396873,-500.0,0.00035616,14]
[337652613,1725917396899,-500.0,0.00035616,14]
[337652614,1725917396927,-500.0,0.00035616,14]
[337652615,1725917396954,-500.0,0.00035616,14]
[337652616,1725917396979,-500.0,0.00035616,14]
[337652617,1725917397006,-270.52171648,0.00035616,14]
[337652618,1725917397031,-600.0,0.00035616,14]
[337652619,1725917397058,-500.0,0.00035616,14]
[337652620,1725917397083,-513.30890607,0.00035616,14]
[337652621,1725917397109,-500.0,0.00035616,14]
[337652622,1725917397134,-500.0,0.00035616,14]
[337652623,1725917397162,-747.69,0.00035616,7]
[337652624,1725917397186,-500.0,0.00035616,14]
[337652625,1725917397211,-500.0,0.00035616,14]
[337652626,1725917397238,-821.15,0.00035616,14]
[337652627,1725917397264,-500.0,0.00035616,14]
[337652628,1725917397289,-501.55924787,0.00035616,14]
[337652629,1725917397315,-500.0,0.00035616,14]
[337652630,1725917397340,-500.0,0.00035616,14]
[337652631,1725917397366,-500.0,0.00035616,14]
[337652632,1725917397390,-766.18,0.00035616,14]
[337652633,1725917397415,-500.0,0.00035616,14]
[337652634,1725917397441,-500.0,0.00035616,14]
[337652635,1725917397466,-230.19581965,0.00035616,14]
[337652636,1725917397491,-500.0,0.00035616,14]
[337652637,1725917397517,-500.0,0.00035616,14]
[337652638,1725917397543,-500.0,0.00035616,14]
[337652639,1725917397568,-500.0,0.00035616,14]
[337652640,1725917397594,-196.67701753,0.00035616,10]
[337652641,1725917397619,-500.0,0.00035616,14]
[337652642,1725917397644,-498.72045794,0.00035616,14]
[337652643,1725917397671,-501.032209,0.00035616,14]
[337652644,1725917397697,-500.0,0.00035616,14]
[337652645,1725917397722,-500.0,0.00035616,14]
[337652646,1725917397747,-500.0,0.00035616,14]
[337652647,1725917397773,-500.0,0.00035616,14]
[337652648,1725917397799,-500.0,0.00035616,14]
[337652649,1725917397824,-500.0,0.00035616,14]
[337652650,1725917397848,-3468.74,0.00035616,7]
[337652651,1725917397874,-500.0,0.00035616,14]
[337652652,1725917397899,-500.0,0.00035616,14]
[337652653,1725917397924,-500.0,0.00035616,14]
[337652654,1725917397949,-500.0,0.00035616,14]
[337652655,1725917397974,-500.0,0.00035616,14]
[337652656,1725917398000,-500.0,0.00035616,14]
[337652657,1725917398026,-500.0,0.00035616,7]
[337652658,1725917398050,-500.0,0.00035616,14]
[337652659,1725917398076,-500.0,0.00035616,14]
[337652660,1725917398101,-500.0,0.00035616,14]
[337652661,1725917398127,-500.0,0.00035616,14]
[337652662,1725917398153,-500.0,0.00035616,14]
[337652663,1725917398185,-500.0,0.00035616,14]
[337652664,1725917398210,-500.0,0.00035616,14]
[337652665,1725917398237,-500.0,0.00035616,14]
[337652666,1725917398263,-500.0,0.00035616,14]
[337652667,1725917398290,-504.68984169,0.00035616,14]
[337652668,1725917398316,-501.25385802,0.00035616,14]
[337652669,1725917398340,-500.0,0.00035616,14]
[337652670,1725917398365,-500.0,0.00035616,14]
[337652671,1725917398391,-500.0,0.00035616,14]
[337652672,1725917398416,-500.0,0.00035616,14]
[337652673,1725917398441,-594.78,0.00035616,14]
[337652674,1725917398464,-500.7802698,0.00035616,14]
[337652675,1725917398489,-366.91431768,0.00035616,14]
[337652677,1725917416005,-150.0,0.00031153,7]
[337652678,1725917416032,-150.0,0.0003118,7]
[337652679,1725917416057,-201.52442482,0.00031208,7]
[337652680,1725917416083,-134.68661827,0.00035616,14]
[337652681,1725917416109,-313.0,0.00035616,14]
[337652682,1725917416134,-500.0,0.00035616,14]
[337652683,1725917416160,-346.58699477,0.00035616,14]
[337652684,1725917416189,-500.0,0.00035616,14]
[337652685,1725917416216,-518.01197842,0.00035616,14]
[337652686,1725917416247,-500.0,0.00035616,14]
[337652687,1725917416274,-500.0,0.00035616,14]
[337652688,1725917416299,-500.0,0.00035616,14]
[337652689,1725917416329,-170.04761414,0.00035616,14]
[337652690,1725917416355,-500.0,0.00035616,14]
[337652691,1725917416380,-510.71981059,0.00035616,14]
[337652692,1725917416405,-511.65401674,0.00035616,14]
[337652693,1725917416430,-500.0,0.00035616,14]
[337652694,1725917416456,-500.0,0.00035616,14]
[337652695,1725917416482,-533.92,0.00035616,14]
[337652696,1725917416507,-500.0,0.00035616,14]
[337652697,1725917416532,-504.3628324,0.00035616,14]
[337652698,1725917416557,-705.83,0.00035616,14]
[337652699,1725917416583,-1190.33,0.00035616,14]
[337652700,1725917416609,-500.0,0.00035616,14]
[337652701,1725917416636,-500.0,0.00035616,14]
[337652702,1725917416662,-500.0,0.00035616,14]
[337652703,1725917416689,-500.0,0.00035616,14]
[337652704,1725917416715,-501.42900578,0.00035616,14]
[337652705,1725917416741,-932.83,0.00035616,14]
[337652706,1725917416767,-932.83,0.00035616,14]
[337652707,1725917416794,-932.83,0.00035616,14]
[337652708,1725917416820,-932.83,0.00035616,14]
[337652709,1725917416847,-932.83,0.00035616,14]
[337652710,1725917416875,-932.83,0.00035616,14]
[337652711,1725917416902,-932.83,0.00035616,14]
[337652712,1725917416928,-932.83,0.00035616,14]
[337652713,1725917416957,-932.83,0.00035616,14]
[337652714,1725917416983,-932.83,0.00035616,14]
[337652715,1725917417009,-932.83,0.00035616,14]
[337652716,1725917417193,-932.83,0.00035616,14]
[337652717,1725917417221,-932.83,0.00035616,14]
[337652718,1725917417251,-932.83,0.00035616,14]
[337652719,1725917417277,-500.0,0.00035616,14]
[337652720,1725917417303,-932.83,0.00035616,14]
[337652721,1725917417330,-932.83,0.00035616,14]
[337652722,1725917417358,-932.83,0.00035616,14]
[337652723,1725917417385,-932.83,0.00035616,14]
[337652724,1725917417413,-932.83,0.00035616,14]
[337652725,1725917417439,-932.83,0.00035616,14]
[337652726,1725917417466,-932.83,0.00035616,14]
[337652727,1725917417493,-932.83,0.00035616,14]
[337652728,1725917417518,-932.83,0.00035616,14]
[337652729,1725917417546,-932.97231556,0.00035616,14]
[337652730,1725917417574,-877.82,0.00035616,14]
[337652731,1725917417600,-523.804249,0.00035616,14]
[337652732,1725917417627,-500.0,0.00035616,14]
[337652733,1725917417655,-500.0,0.00035616,14]
[337652734,1725917417692,-500.0,0.00035616,14]
[337652735,1725917417728,-199.42699618,0.00035616,14]
[337652736,1725917417770,-500.0,0.00035616,14]
[337652737,1725917417806,-500.0,0.00035616,14]
[337652738,1725917417842,-500.0,0.00035616,14]
[337652739,1725917417877,-302.3,0.00035616,7]
[337652740,1725917417911,-501.3226096,0.00035616,14]
[337652741,1725917417944,-500.0,0.00035616,14]
[337652742,1725917417979,-500.0,0.00035616,14]
[337652743,1725917418013,-500.0,0.00035616,14]
[337652744,1725917418046,-960.65,0.00035616,14]
[337652745,1725917418079,-500.0,0.00035616,14]
[337652746,1725917418113,-500.0,0.00035616,14]
[337652747,1725917418148,-500.0,0.00035616,14]
[337652748,1725917418183,-500.0,0.00035616,14]
[337652749,1725917418219,-500.0,0.00035616,14]
[337652750,1725917418254,-500.0,0.00035616,14]
[337652751,1725917418288,-500.0,0.00035616,14]
[337652752,1725917418324,-500.0,0.00035616,14]
[337652753,1725917418358,-500.0,0.00035616,14]
[337652754,1725917418392,-500.0,0.00035616,14]
[337652755,1725917418424,-500.0,0.00035616,14]
[337652756,1725917418457,-500.0,0.00035616,14]
[337652757,1725917418490,-500.0,0.00035616,14]
[337652758,1725917418523,-500.0,0.00035616,14]
[337652759,1725917418560,-500.0,0.00035616,14]
[337652760,1725917418594,-500.0,0.00035616,14]
[337652761,1725917418628,-388.26207011,0.00035616,14]
[337652762,1725917418662,-545.43,0.00035616,14]
[337652763,1725917418695,-500.0,0.00035616,14]
[337652764,1725917418730,-500.0,0.00035616,14]
[337652765,1725917418764,-500.0,0.00035616,14]
[337652766,1725917418797,-642.7053625,0.00035616,14]
[337652767,1725917418832,-500.0,0.00035616,14]
[337652768,1725917418866,-500.0,0.00035616,14]
[337652769,1725917418898,-500.0,0.00035616,14]
[337652770,1725917418931,-500.0,0.00035616,14]
[337652771,1725917418962,-1615.92,0.00035616,14]
[337652772,1725917418994,-1318.47,0.00035616,7]
[337652773,1725917419026,-500.0,0.00035616,14]
[337652774,1725917419060,-500.0,0.00035616,14]
[337652775,1725917419096,-500.0,0.00035616,14]
[337652776,1725917419128,-500.0,0.00035616,14]
[337652777,1725917419160,-500.0,0.00035616,14]
[337652778,1725917419196,-500.0,0.00035616,14]
[337652779,1725917419229,-500.0,0.00035616,14]
[337652780,1725917419263,-500.0,0.00035616,14]
[337652781,1725917419295,-500.0,0.00035616,14]
[337652782,1725917419331,-500.0,0.00035616,14]
[337652783,1725917419365,-500.0,0.00035616,14]
[337652784,1725917419399,-500.0,0.00035616,14]
[337652785,1725917419433,-500.0,0.00035616,14]
[337652786,1725917419466,-500.0,0.00035616,14]
[337652787,1725917419498,-501.45512182,0.00035616,14]
[337652788,1725917419530,-501.21850379,0.00035616,14]
[337652789,1725917419564,-408.2097917,0.00035616,14]
[337652790,1725917419597,-500.0,0.00035616,14]
[337652791,1725917419630,-925.74,0.00035616,14]
[337652792,1725917419665,-500.0,0.00035616,14]
[337652793,1725917419700,-500.0,0.00035616,14]
[337652794,1725917419735,-501.74844636,0.00035616,14]
[337652795,1725917419771,-619.35,0.00035616,14]
[337652796,1725917419804,-569.88,0.00035616,14]
[337652797,1725917419839,-463.55958975,0.00035616,14]
[337652798,1725917419871,-500.0,0.00035616,14]
[337652799,1725917419902,-500.0,0.00035616,14]
[337652800,1725917419935,-500.0,0.00035616,14]
[337652801,1725917419968,-500.0,0.00035616,14]
[337652802,1725917420000,-500.0,0.00035616,14]
[337652803,1725917420032,-500.0,0.00035616,14]
[337652804,1725917420066,-500.0,0.00035616,14]
[337652805,1725917420097,-500.0,0.00035616,14]
[337652806,1725917420130,-500.0,0.00035616,14]
[337652807,1725917420168,-1385.19,0.00035616,14]
[337652808,1725917420203,-635.13,0.00035616,14]
[337652809,1725917420239,-500.0,0.00035616,14]
[337652810,1725917420275,-500.0,0.00035616,14]
[337652811,1725917420311,-500.0,0.00035616,14]
[337652812,1725917420344,-500.4463617,0.00035616,14]
[337652813,1725917420541,-596.54,0.00035616,14]
[337652814,1725917420576,-500.0,0.00035616,7]
[337652815,1725917420609,-808.69,0.00035616,14]
[337652816,1725917420644,-500.0,0.00035616,14]
[337652817,1725917420678,-500.0,0.00035616,14]
[337652818,1725917420712,-242.65168795,0.00035616,14]
[337652819,1725917420746,-248.7598104,0.00035616,14]
[337652820,1725917420779,-500.0,0.00035616,14]
[337652821,1725917420813,-500.0,0.00035616,14]
[337652822,1725917420849,-500.0,0.00035616,14]
[337652823,1725917420881,-500.0,0.00035616,14]
[337652824,1725917420915,-500.0,0.00035616,14]
[337652825,1725917420947,-502.40057922,0.00035616,14]
[337652826,1725917420981,-500.0,0.00035616,14]
[337652827,1725917421015,-500.0,0.00035616,14]
[337652828,1725917421049,-500.0,0.00035616,14]
[337652829,1725917421083,-520.07826471,0.00035616,14]
[337652830,1725917421117,-506.69573863,0.00035616,14]
[337652831,1725917421153,-500.0,0.00035616,14]
[337652832,1725917421191,-500.0,0.00035616,14]
[337652833,1725917421225,-725.17,0.00035616,14]
[337652834,1725917421260,-500.0,0.00035616,14]
[337652835,1725917421293,-597.62,0.00035616,14]
[337652836,1725917421328,-500.0,0.00035616,14]
[337652837,1725917421362,-500.0,0.00035616,14]
[337652838,1725917421394,-500.0,0.00035616,14]
[337652839,1725917421426,-500.0,0.00035616,14]
[337652840,1725917421460,-596.57861436,0.00035616,14]
[337652841,1725917421493,-585.97689458,0.00035616,14]
[337652842,1725917421526,-500.0,0.00035616,14]
[337652843,1725917421560,-512.78502997,0.00035616,14]
[337652844,1725917421593,-500.0,0.00035616,14]
[337652845,1725917421626,-500.0,0.00035616,14]
[337652846,1725917421660,-500.0,0.00035616,14]
[337652847,1725917421694,-500.0,0.00035616,14]
[337652848,1725917421729,-501.26533805,0.00035616,14]
[337652849,1725917421762,-500.0,0.00035616,14]
[337652850,1725917421796,-500.0,0.00035616,14]
[337652851,1725917421829,-500.0,0.00035616,14]
[337652852,1725917421864,-305.40219266,0.00035616,14]
[337652853,1725917421897,-500.0,0.00035616,14]
[337652854,1725917421932,-232.38902857,0.00035616,14]
[337652855,1725917421965,-500.0,0.00035616,14]
[337652856,1725917421999,-500.0,0.00035616,14]
[337652857,1725917422034,-500.69436653,0.00035616,14]
[337652858,1725917422068,-500.0,0.00035616,14]
[337652859,1725917422119,-568.01910834,0.00035616,14]
[337652860,1725917422169,-761.52,0.00035616,14]
[337652861,1725917422218,-633.52,0.00035616,14]
[337652862,1725917422267,-500.0,0.00035616,14]
[337652863,1725917422318,-502.39211463,0.00035616,14]
[337652864,1725917422361,-1991.24,0.00035616,14]
[337652865,1725917422412,-604.42,0.00035616,14]
[337652866,1725917422461,-500.0,0.00035616,14]
[337652867,1725917422504,-500.0,0.00035616,14]
[337652868,1725917422550,-500.0,0.00035616,14]
[337652869,1725917422595,-500.72408955,0.00035616,14]
[337652870,1725917422638,-500.0,0.00035616,14]
[337652871,1725917422681,-500.0,0.00035616,14]
[337652872,1725917422730,-500.0,0.00035616,14]
[337652873,1725917422777,-507.8829069,0.00035616,14]
[337652874,1725917422821,-500.0,0.00035616,14]
[337652875,1725917422865,-500.0,0.00035616,14]
[337652876,1725917422908,-501.64698111,0.00035616,14]
[337652877,1725917422950,-500.0,0.00035616,14]
[337652878,1725917422991,-500.67967646,0.00035616,14]
[337652879,1725917423032,-500.0,0.00035616,14]
[337652880,1725917423074,-500.0,0.00035616,14]
[337652881,1725917423116,-715.14,0.00035616,14]
[337652882,1725917423159,-500.0,0.00035616,14]
[337652883,1725917423205,-500.0,0.00035616,14]
[337652884,1725917423249,-500.0,0.00035616,14]
[337652885,1725917423292,-500.0,0.00035616,14]
[337652886,1725917423335,-501.62178188,0.00035616,14]
[337652887,1725917423379,-500.0,0.00035616,14]
[337652888,1725917423422,-500.0,0.00035616,14]
[337652889,1725917423469,-500.0,0.00035616,14]
[337652890,1725917423513,-563.42061105,0.00035616,14]
[337652891,1725917423556,-585.1,0.00035616,14]
[337652892,1725917423600,-502.1513624,0.00035616,14]
[337652893,1725917423644,-500.0,0.00035616,14]
[337652894,1725917423691,-500.0,0.00035616,14]
[337652895,1725917423739,-1225.47,0.00035616,14]
[337652896,1725917423785,-500.0,0.00035616,14]
[337652897,1725917423833,-753.88,0.00035616,14]
[337652898,1725917423878,-625.61,0.00035616,14]
[337652899,1725917423921,-500.0,0.00035616,14]
[337652900,1725917423956,-643.50107225,0.00035616,14]
[337652901,1725917423992,-502.66399721,0.00035616,14]
[337652902,1725917424029,-500.0,0.00035616,14]
[337652903,1725917424066,-500.0,0.00035616,14]
[337652904,1725917424100,-500.0,0.00035616,14]
[337652905,1725917424135,-500.0,0.00035616,14]
[337652906,1725917424476,-500.0,0.00035616,14]
[337652907,1725917424512,-501.69705807,0.00035616,14]
[337652908,1725917424547,-1555.93,0.00035616,14]
[337652909,1725917424583,-500.0,0.00035616,14]
[337652910,1725917424619,-500.0,0.00035616,14]
[337652911,1725917424654,-502.17225633,0.00035616,14]
[337652912,1725917424690,-654.56,0.00035616,14]
[337652913,1725917424727,-1156.95,0.00035616,14]
[337652914,1725917424764,-500.0,0.00035616,14]
[337652915,1725917424800,-500.0,0.00035616,14]
[337652916,1725917424836,-1178.91,0.00035616,14]
[337652917,1725917424872,-500.0,0.00035616,14]
[337652918,1725917424908,-500.0,0.00035616,14]
[337652919,1725917424944,-501.53743628,0.00035616,14]
[337652920,1725917424979,-500.0,0.00035616,14]
[337652921,1725917425017,-656.11,0.00035616,14]
[337652922,1725917425053,-287.47311274,0.00035616,14]
[337652923,1725917425090,-500.0,0.00035616,14]
[337652924,1725917425126,-500.0,0.00035616,14]
[337652925,1725917425162,-500.0,0.00035616,14]
[337652926,1725917425201,-506.58544579,0.00035616,14]
[337652927,1725917425237,-500.0,0.00035616,14]
[337652928,1725917425273,-673.51,0.00035616,14]
[337652929,1725917425308,-905.47,0.00035616,14]
[337652930,1725917425342,-500.0,0.00035616,14]
[337652931,1725917425383,-500.0,0.00035616,14]
[337652932,1725917425417,-929.75,0.00035616,14]
[337652933,1725917425452,-500.0,0.00035616,14]
[337652934,1725917425486,-684.39,0.00035616,14]
[337652935,1725917425521,-500.24507162,0.00035616,14]
[337652936,1725917425556,-500.0,0.00035616,14]
[337652937,1725917425594,-448.34734926,0.00035616,14]
[337652938,1725917425633,-500.0,0.00035616,14]
[337652939,1725917425670,-500.0,0.00035616,14]
[337652940,1725917425706,-633.36,0.00035616,14]
[337652941,1725917425744,-500.0,0.00035616,14]
[337652942,1725917425778,-501.05563708,0.00035616,14]
[337652943,1725917425815,-501.4238633,0.00035616,14]
[337652944,1725917425851,-1545.68,0.00035616,14]
[337652945,1725917425887,-596.26,0.00035616,14]
[337652946,1725917425922,-500.0,0.00035616,14]
[337652947,1725917425957,-1304.66,0.00035616,14]
[337652948,1725917425991,-500.0,0.00035616,14]
[337652949,1725917426026,-500.0,0.00035616,14]
[337652950,1725917426061,-500.0,0.00035616,14]
[337652951,1725917426096,-500.0,0.00035616,14]
[337652952,1725917426130,-577.38,0.00035616,14]
[337652953,1725917426163,-500.0,0.00035616,14]
[337652954,1725917426200,-899.75,0.00035616,14]
[337652955,1725917426233,-500.0,0.00035616,14]
[337652956,1725917426267,-724.54,0.00035616,14]
[337652957,1725917426300,-504.58965756,0.00035616,14]
[337652958,1725917426334,-511.21213967,0.00035616,14]
[337652959,1725917426368,-500.0,0.00035616,14]
[337652960,1725917426400,-502.35896847,0.00035616,14]
[337652961,1725917426433,-500.0,0.00035616,14]
[337652962,1725917426470,-897.94,0.00035616,14]
[337652963,1725917426503,-500.0,0.00035616,14]
[337652964,1725917426535,-897.94,0.00035616,14]
[337652965,1725917426569,-500.0,0.00035616,14]
[337652966,1725917426608,-897.94,0.00035616,14]
[337652967,1725917426643,-897.94,0.00035616,14]
[337652968,1725917426678,-897.94,0.00035616,14]
[337652969,1725917426713,-753.6,0.00035616,14]
[337652970,1725917426748,-897.94,0.00035616,14]
[337652971,1725917426783,-897.94,0.00035616,14]
[337652972,1725917426817,-897.94,0.00035616,14]
[337652973,1725917426852,-897.94,0.00035616,14]
[337652974,1725917426885,-897.94,0.00035616,14]
[337652975,1725917426920,-897.94,0.00035616,14]
[337652976,1725917426952,-897.94,0.00035616,14]
[337652977,1725917426986,-897.94,0.00035616,14]
[337652978,1725917427019,-897.94,0.00035616,14]
[337652979,1725917427055,-500.0,0.00035616,14]
[337652980,1725917427089,-648.9,0.00035616,14]
[337652981,1725917427122,-897.94,0.00035616,14]
[337652982,1725917427155,-897.94,0.00035616,14]
[337652983,1725917427190,-500.0,0.00035616,14]
[337652984,1725917427224,-897.94,0.00035616,14]
[337652985,1725917427257,-500.0,0.00035616,14]
[337652986,1725917427290,-897.94,0.00035616,14]
[337652987,1725917427326,-897.94,0.00035616,14]
[337652988,1725917427359,-897.94,0.00035616,14]
[337652989,1725917427391,-655.58,0.00035616,14]
[337652990,1725917427426,-897.94,0.00035616,14]
[337652991,1725917427460,-897.94,0.00035616,14]
[337652992,1725917427492,-897.94,0.00035616,14]
[337652993,1725917427525,-500.0,0.00035616,14]
[337652994,1725917427560,-897.98,0.00035616,14]
[337652995,1725917427592,-500.0,0.00035616,14]
[337652996,1725917427624,-512.76458089,0.00035616,14]
[337652997,1725917427656,-500.0,0.00035616,14]
[337652998,1725917427691,-500.0,0.00035616,14]
[337652999,1725917427726,-500.0,0.00035616,14]
[337653000,1725917427914,-3371.08,0.00035616,30]
[337653001,1725917427947,-500.0,0.00035616,14]
[337653002,1725917427981,-2191.91,0.00035616,14]
[337653003,1725917428014,-500.0,0.00035616,14]
[337653004,1725917428048,-500.0,0.00035616,14]
[337653005,1725917428086,-500.0,0.00035616,14]
[337653006,1725917428119,-500.0,0.00035616,14]
[337653007,1725917428152,-662.3,0.00035616,14]
[337653008,1725917428188,-567.56,0.00035616,14]
[337653009,1725917428221,-500.0,0.00035616,14]
[337653010,1725917428255,-567.56,0.00035616,14]
[337653011,1725917428288,-1451.27,0.00035616,14]
[337653012,1725917428321,-567.56,0.00035616,14]
[337653013,1725917428353,-567.56,0.00035616,14]
[337653014,1725917428387,-567.56,0.00035616,14]
[337653015,1725917428419,-567.56,0.00035616,14]
[337653016,1725917428452,-567.56,0.00035616,14]
[337653017,1725917428484,-567.56,0.00035616,14]
[337653018,1725917428516,-567.56,0.00035616,14]
[337653019,1725917428549,-833.33,0.00035616,14]
[337653020,1725917428586,-567.56,0.00035616,14]
[337653021,1725917428619,-567.56,0.00035616,14]
[337653022,1725917428653,-500.0,0.00035616,14]
[337653023,1725917428687,-567.56,0.00035616,14]
[337653024,1725917428722,-567.56,0.00035616,14]
[337653025,1725917428759,-567.56,0.00035616,14]
[337653026,1725917428794,-567.56,0.00035616,14]
[337653027,1725917428834,-567.56,0.00035616,14]
[337653028,1725917428869,-567.56,0.00035616,14]
[337653029,1725917428903,-567.56,0.00035616,14]
[337653030,1725917428937,-501.79348152,0.00035616,14]
[337653031,1725917428970,-567.56,0.00035616,14]
[337653032,1725917429005,-500.0,0.00035616,14]
[337653033,1725917429038,-567.56,0.00035616,14]
[337653034,1725917429074,-500.0,0.00035616,14]
[337653035,1725917429112,-567.56,0.00035616,14]
[337653036,1725917429148,-567.56,0.00035616,14]